fUST/lending_fUST_20251109
["ID","MTS","AMOUNT","RATE_DAILY","PERIOD"]
[393412494,1762618158158,-925.0,0.00019055,2]
[393412495,1762618158179,-235.28864899,0.00019055,2]
[393412496,1762618158199,-150.0,0.00019485,2]
[393412497,1762618158219,-22.5526318,0.00020818,2]
[393412544,1762618232633,-212.73601719,0.00020818,2]
[393412546,1762618232644,-177.0,0.00021485,2]
[393412548,1762618232653,-734.53304031,0.00022489,2]
[393412550,1762618232663,-300.0,0.00022572,2]
[393412552,1762618232674,-300.0,0.00022572,2]
[393412554,1762618232684,-1200.0,0.00022572,2]
[393412556,1762618232693,-446.90231153,0.00022573,2]
[393412558,1762618232703,-481.15464641,0.00022573,2]
[393412560,1762618232712,-572.96596524,0.00022573,2]
[393412562,1762618232721,-500.0,0.00022573,2]
[393412564,1762618232730,-500.0,0.00022573,2]
[393412566,1762618232740,-500.0,0.00022573,2]
[393412568,1762618232749,-500.0,0.00022573,2]
[393412570,1762618232758,-532.28976256,0.00022573,2]
[393412572,1762618232768,-500.0,0.00022573,2]
[393412574,1762618232778,-500.0,0.00022573,2]
[393412576,1762618232787,-500.0,0.00022573,2]
[393412578,1762618232796,-18226.90479697,0.00022573,2]
[393412580,1762618232805,-235.28864899,0.0002258,2]
[393412582,1762618232816,-500.0,0.00022588,2]
[393412584,1762618232826,-303.09393717,0.00022589,2]
[393412586,1762618232846,-500.0,0.00022589,2]
[393412588,1762618232855,-500.0,0.00022589,2]
[393412590,1762618232864,-156.5073693,0.00022589,2]
[393412592,1762618232874,-500.0,0.00022589,2]
[393412594,1762618232883,-81.10281113,0.00022589,2]
[393412596,1762618232894,-418.89718887,0.00022589,2]
[393412598,1762618232904,-454.75459217,0.00022589,2]
[393412601,1762618232923,-45.24540783,0.00022589,2]
[393412603,1762618232933,-500.0,0.00022589,2]
[393412605,1762618232942,-500.0,0.00022589,2]
[393412607,1762618232951,-500.0,0.00022589,2]
[393412609,1762618232960,-500.0,0.00022589,2]
[393412612,1762618232973,-500.0,0.00022589,2]
[393412614,1762618232983,-500.0,0.00022589,2]
[393412616,1762618232992,-500.0,0.00022589,2]
[393412618,1762618233002,-500.0,0.00022589,2]
[393412620,1762618233011,-500.0,0.00022589,2]
[393412622,1762618233021,-500.0,0.00022589,2]
[393412637,1762618233135,-500.0,0.00022589,2]
[393412639,1762618233175,-500.0,0.00022589,2]
[393412641,1762618233185,-500.0,0.00022589,2]
[393412643,1762618233195,-500.0,0.00022589,2]
[393412645,1762618233205,-500.0,0.00022589,2]
[393412647,1762618233215,-500.0,0.00022589,2]
[393412649,1762618233224,-628.18966356,0.00022589,2]
[393412651,1762618233234,-1000.0,0.00022589,2]
[393412653,1762618233244,-153.19538771,0.00022589,2]
[393412655,1762618233254,-500.0,0.00022589,2]
[393412657,1762618233264,-194.92150562,0.00022589,2]
[393412659,1762618233274,-500.0,0.00022589,2]
[393412662,1762618233284,-649.17495185,0.00022589,2]
[393412664,1762618233294,-300.0,0.00022589,2]
[393412665,1762618233304,-500.0,0.00022589,2]
[393412667,1762618233315,-362.85083187,0.00022589,2]
[393412669,1762618233325,-399.81834234,0.0002259,2]
[393412671,1762618233335,-48662.13771875,0.0002259,2]
[393412673,1762618233347,-3428.37642227,0.0002259,2]
[393412694,1762618238744,-16844.9999999,0.0002259,2]
[393412695,1762618238758,-401.2941972,0.0002259,2]
[393412696,1762618238795,-266.9869136,0.0002259,2]
[393412697,1762618238807,-291.300155,0.0002259,2]
[393412698,1762618238820,-890.15205145,0.0002259,2]
[393412699,1762618238833,-281.00478041,0.0002259,2]
[393412709,1762618240637,-13403.79813213,0.0002259,2]
[393412711,1762618240683,-429.42624312,0.0002259,2]
[393412752,1762618245554,-250.94992914,0.000225,2]
[393412787,1762618246990,-116.81892785,0.000225,2]
[393412789,1762618246999,-745.0195994,0.0002259,2]
[393412798,1762618247248,-35238.57895575,0.0002259,2]
[393412799,1762618247261,-402011.44930675,0.0002259,2]
[393412800,1762618491897,254.016752,0.00013699,2]
[393412804,1762619368093,-215.6,0.00019058,2]
[393412841,1762619432621,-150.0,0.00019069,2]
[393412843,1762619432633,-240.07478728,0.000191,2]
[393412845,1762619432679,-153.93588519,0.000191,2]
[393412846,1762619432691,-254.016752,0.00020187,2]
[393412847,1762619432702,-381.70586074,0.00020478,2]
[393412848,1762619432713,-177.0,0.00021069,2]
[393412849,1762619432723,-328.194384,0.00021556,2]
[393412850,1762619432734,-374.7042167,0.00021556,2]
[393412851,1762619432745,-151.0,0.00022321,2]
[393412852,1762619432755,-253.13300484,0.00022321,2]
[393412853,1762619432766,-300.0,0.0002237,2]
[393412854,1762619432776,-300.0,0.00022371,2]
[393412855,1762619432786,-300.0,0.00022371,2]
[393412856,1762619432798,-300.0,0.00022371,2]
[393412857,1762619432821,-300.0,0.00022371,2]
[393412858,1762619432836,-1200.0,0.00022371,2]
[393412860,1762619432848,-1200.0,0.00022372,2]
[393412862,1762619432860,-50000.0,0.00022372,2]
[393412864,1762619432872,-503.27529837,0.00022373,2]
[393412865,1762619432882,-500.0,0.00022373,2]
[393412867,1762619432892,-500.0,0.00022373,2]
[393412868,1762619432903,-500.0,0.00022373,2]
[393412869,1762619432915,-500.0,0.00022373,2]
[393412870,1762619432927,-500.0,0.00022373,2]
[393412871,1762619432937,-217.36026755,0.000224,2]
[393412872,1762619432950,-14505.85705312,0.000224,2]
[393412873,1762619432965,-256.13405257,0.00022467,2]
[393412874,1762619432978,-500.0,0.00022473,2]
[393412875,1762619432990,-500.0,0.00022473,2]
[393412876,1762619433004,-411.44609935,0.00022473,2]
[393412877,1762619433017,-502.57909478,0.00022473,2]
[393412878,1762619433030,-500.0,0.00022473,2]
[393412879,1762619433045,-500.0,0.00022473,2]
[393412880,1762619433058,-500.0,0.00022473,2]
[393412881,1762619433070,-500.0,0.00022473,2]
[393412882,1762619433084,-500.0,0.00022473,2]
[393412883,1762619433096,-506.98725193,0.00022473,2]
[393412884,1762619433109,-604.94498007,0.00022473,2]
[393412885,1762619433120,-500.0,0.00022473,2]
[393412886,1762619433131,-1000.0,0.00022477,2]
[393412887,1762619433141,-1000.0,0.00022477,2]
[393412888,1762619433152,-1000.0,0.00022477,2]
[393412889,1762619433162,-1000.0,0.00022477,2]
[393412890,1762619433172,-1000.0,0.00022477,2]
[393412891,1762619433183,-1000.0,0.00022477,2]
[393412892,1762619433195,-1000.0,0.00022477,2]
[393412893,1762619433207,-422.8136874,0.00022477,2]
[393412894,1762619433220,-500.0,0.00022489,2]
[393412895,1762619433232,-156.54341033,0.00022489,2]
[393412896,1762619433244,-498596.4833145,0.0002249,2]
[393412907,1762619438504,-386.51,0.0002248,10]
[393412908,1762619438516,-651.08194052,0.0002249,2]
[393412969,1762619447147,-322.09,0.0002248,10]
[393412970,1762619447157,-185752.43474498,0.0002249,2]
[393412971,1762619447167,-213.61,0.000225,2]
[393412972,1762619447177,-213.61,0.000225,2]
[393412973,1762619447187,-316.0,0.00022535,2]
[393412974,1762619447198,-420.76579493,0.00022573,2]
[393412975,1762619447208,-500.0,0.00022573,2]
[393412976,1762619447219,-427.5324233,0.00022573,2]
[393412977,1762619447230,-1005.36577565,0.00022588,2]
[393412978,1762619447240,-1433.1312826,0.0002259,2]
[393412979,1762619447250,-399.81834234,0.0002259,2]
[393412980,1762619447260,-213.61,0.000226,2]
[393412981,1762619447273,-213.61,0.000226,2]
[393412982,1762619447283,-269.26850717,0.0002269,2]
[393412983,1762619447293,-296.63590918,0.0002269,2]
[393412984,1762619447303,-500.0,0.0002269,2]
[393412985,1762619447313,-291.988855,0.0002269,2]
[393412986,1762619447323,-151.0,0.0002269,2]
[393412987,1762619447333,-151.45345064,0.0002269,2]
[393412988,1762619447343,-151.54740467,0.0002269,2]
[393412989,1762619447354,-151.0,0.0002269,2]
[393412990,1762619447363,-151.65747437,0.0002269,2]
[393412991,1762619447372,-151.50518501,0.0002269,2]
[393412992,1762619447381,-152.24937403,0.0002269,2]
[393412993,1762619447395,-151.0,0.0002269,2]
[393412994,1762619447405,-151.0,0.0002269,2]
[393412995,1762619447414,-152.45805832,0.0002269,2]
[393412996,1762619447425,-152.03567198,0.0002269,2]
[393412997,1762619447435,-151.0,0.0002269,2]
[393412998,1762619447446,-500.0,0.0002269,2]
[393412999,1762619447457,-500.0,0.0002269,2]
[393413000,1762619447467,-500.0,0.0002269,2]
[393413001,1762619447477,-213.61,0.000227,2]
[393413002,1762619447487,-213.61,0.000227,2]
[393413003,1762619447496,-244.8192275,0.00022704,2]
[393413004,1762619447507,-525.579939,0.00022704,2]
[393413005,1762619447516,-637.56045443,0.00022729,2]
[393413006,1762619447529,-500.0,0.00022745,2]
[393413007,1762619447539,-151.0,0.00022745,2]
[393413008,1762619447549,-151.0,0.00022745,2]
[393413009,1762619447559,-151.0,0.00022745,2]
[393413010,1762619447569,-151.0,0.00022745,2]
[393413011,1762619447580,-500.0,0.00022745,2]
[393413012,1762619447590,-500.0,0.00022745,2]
[393413013,1762619447601,-500.0,0.00022745,2]
[393413014,1762619447611,-500.0,0.000228,2]
[393413015,1762619447621,-198.9359506,0.000228,2]
[393413016,1762619447631,-151.0,0.000228,2]
[393413017,1762619447641,-151.0,0.000228,2]
[393413018,1762619447651,-198.0,0.000228,2]
[393413019,1762619447661,-500.0,0.000228,2]
[393413020,1762619447671,-500.0,0.000228,2]
[393413021,1762619447680,-500.0,0.000228,2]
[393413022,1762619447690,-213.61,0.000228,2]
[393413023,1762619447701,-213.61,0.000228,2]
[393413024,1762619447711,-349.68693973,0.00022854,2]
[393413025,1762619447721,-151.0,0.00022854,2]
[393413026,1762619447731,-295.03993149,0.00022854,2]
[393413027,1762619447742,-479.6577638,0.00022854,2]
[393413028,1762619447751,-500.0,0.00022854,2]
[393413029,1762619447762,-221.71594749,0.00022854,2]
[393413030,1762619447773,-1596.04,0.000229,7]
[393413031,1762619447783,-213.61,0.000229,2]
[393413032,1762619447792,-213.61,0.000229,2]
[393413033,1762619447802,-213.61,0.000229,2]
[393413034,1762619447812,-245.0,0.00022909,2]
[393413035,1762619447821,-500.0,0.00022909,2]
[393413036,1762619447831,-1000.0,0.00022921,2]
[393413037,1762619447842,-1000.0,0.00022921,2]
[393413038,1762619447851,-500.0,0.00022964,2]
[393413039,1762619447861,-893.0,0.00023,2]
[393413040,1762619447871,-213.61,0.00023,2]
[393413041,1762619447880,-213.61,0.00023,2]
[393413042,1762619447891,-500.0,0.00023014,2]
[393413043,1762619447901,-500.0,0.00023019,2]
[393413044,1762619447911,-704.37568256,0.00023021,2]
[393413045,1762619447920,-1000.0,0.00023021,2]
[393413046,1762619447931,-1000.0,0.00023021,2]
[393413047,1762619447940,-1000.0,0.00023021,2]
[393413048,1762619447950,-1000.0,0.00023021,2]
[393413049,1762619447961,-600.0,0.0002304,20]
[393413050,1762619447973,-204.0,0.00023069,2]
[393413051,1762619447982,-500.0,0.00023074,2]
[393413052,1762619447991,-213.61,0.000231,2]
[393413053,1762619448000,-213.61,0.000231,2]
[393413054,1762619448010,-485.64777488,0.00023121,2]
[393413055,1762619448021,-500.0,0.00023128,2]
[393413056,1762619448031,-500.0,0.00023183,2]
[393413057,1762619448042,-213.61,0.000232,2]
[393413058,1762619448053,-213.61,0.000232,2]
[393413059,1762619448063,-247.0,0.00023214,2]
[393413060,1762619448072,-500.0,0.00023238,2]
[393413061,1762619448083,-500.0,0.00023293,2]
[393413062,1762619448094,-162.31256608,0.000233,2]
[393413063,1762619448103,-213.61,0.000233,2]
[393413064,1762619448113,-213.61,0.000233,2]
[393413065,1762619448124,-557.96094902,0.00023348,2]
[393413066,1762619448133,-213.61,0.000234,2]
[393413067,1762619448143,-213.61,0.000234,2]
[393413068,1762619448154,-1500.0,0.00023468,2]
[393413069,1762619448163,-821.02387417,0.00023468,2]
[393413070,1762619448173,-247.0,0.00023471,2]
[393413071,1762619448183,-213.61,0.000235,2]
[393413072,1762619448193,-213.61,0.000235,2]
[393413073,1762619448203,-213.61,0.000235,2]
[393413074,1762619448212,-1500.0,0.00023568,2]
[393413075,1762619448222,-792.61176262,0.00023568,2]
[393413076,1762619448231,-396.99659791,0.00023568,2]
[393413077,1762619448242,-500.0,0.00023568,2]
[393413078,1762619448251,-213.61,0.000236,2]
[393413079,1762619448262,-213.61,0.000236,2]
[393413080,1762619448273,-565.4104439,0.00023642,2]
[393413081,1762619448283,-168.0,0.00023664,2]
[393413082,1762619448293,-168.0,0.00023686,2]
[393413083,1762619448303,-213.61,0.000237,2]
[393413084,1762619448314,-213.61,0.000237,2]
[393413085,1762619448323,-247.0,0.00023736,2]
[393413086,1762619448333,-168.0,0.00023747,2]
[393413087,1762619448343,-213.61,0.000238,2]
[393413088,1762619448354,-213.61,0.000238,2]
[393413089,1762619448364,-279.79340286,0.00023871,2]
[393413090,1762619448375,-934.364336,0.00023871,2]
[393413091,1762619448386,-247.0,0.00023872,2]
[393413092,1762619448397,-213.61,0.000239,2]
[393413093,1762619448408,-213.61,0.000239,2]
[393413094,1762619448419,-168.0,0.00023985,2]
[393413095,1762619448431,-213.61,0.00024,2]
[393413096,1762619448441,-213.61,0.00024,2]
[393413097,1762619448451,-2000.0,0.00024016,2]
[393413098,1762619448462,-213.61,0.000241,2]
[393413099,1762619448473,-213.61,0.000241,2]
[393413100,1762619448483,-213.61,0.000241,2]
[393413101,1762619448492,-2000.0,0.00024116,2]
[393413102,1762619448503,-247.0,0.00024117,2]
[393413103,1762619448512,-46015.6808204,0.00024142,2]
[393413104,1762619448524,-500.0,0.00024173,2]
[393413105,1762619448534,-500.0,0.00024173,2]
[393413106,1762619448544,-500.0,0.00024173,2]
[393413107,1762619448555,-500.0,0.00024173,2]
[393413108,1762619448564,-151.0,0.00024173,7]
[393413109,1762619448574,-269.589389,0.00024173,2]
[393413110,1762619448585,-213.61,0.000242,2]
[393413111,1762619448597,-213.61,0.000242,2]
[393413112,1762619448607,-168.0,0.00024297,2]
[393413113,1762619448619,-350.0,0.000243,2]
[393413114,1762619448630,-213.61,0.000243,2]
[393413115,1762619448641,-213.61,0.000243,2]
[393413116,1762619448651,-404.0,0.00024301,2]
[393413117,1762619448662,-420.0,0.00024301,2]
[393413118,1762619448672,-403.0,0.00024301,2]
[393413119,1762619448683,-420.0,0.00024301,2]
[393413120,1762619448693,-247.0,0.00024305,2]
[393413121,1762619448702,-168.0,0.00024328,2]
[393413122,1762619448713,-213.61,0.000244,2]
[393413123,1762619448723,-213.61,0.000244,2]
[393413124,1762619448733,-168.0,0.00024404,2]
[393413125,1762619448743,-1680.0,0.00024414,2]
[393413126,1762619448753,-213.61,0.000245,2]
[393413127,1762619448768,-213.61,0.000245,2]
[393413128,1762619448781,-1723.17934684,0.00024564,2]
[393413129,1762619448791,-247.0,0.00024599,2]
[393413130,1762619448801,-213.61,0.000246,2]
[393413131,1762619448811,-213.61,0.000246,2]
[393413132,1762619448820,-213.61,0.000246,2]
[393413133,1762619448830,-247.0,0.00024649,2]
[393413134,1762619448840,-2016.47770415,0.00024651,2]
[393413135,1762619448849,-151.0,0.00024658,2]
[393413136,1762619448858,-2500.0,0.00024664,2]
[393413137,1762619448868,-151.0,0.000247,8]
[393413138,1762619448878,-213.61,0.000247,2]
[393413139,1762619448887,-213.61,0.000247,2]
[393413140,1762619448897,-151.0,0.00024713,2]
[393413141,1762619448907,-1075.17552594,0.00024721,2]
[393413142,1762619448917,-500.0,0.00024721,2]
[393413143,1762619448927,-733.77673172,0.00024721,2]
[393413144,1762619448937,-198.0,0.00024768,2]
[393413145,1762619448947,-151.0,0.000248,2]
[393413146,1762619448957,-24479.1540108,0.000248,2]
[393413147,1762619448970,-500.0,0.00024873,2]
[393413148,1762619448980,-500.0,0.00024873,2]
[393413149,1762619448989,-500.0,0.00024873,2]
[393413150,1762619449001,-500.0,0.00024873,2]
[393413151,1762619449011,-500.0,0.00024873,2]
[393413152,1762619449024,-160.0,0.00024878,2]
[393413153,1762619449034,-151.0,0.000249,2]
[393413154,1762619449045,-175566.94825145,0.000249,2]
[393413155,1762619484965,1118.97267802,0.00036829,20]
[393413156,1762619840284,1000.0,0.00032,120]
[393413267,1762620631803,-150.0,0.00019043,2]
[393413268,1762620631814,-599.1227061,0.00019055,2]
[393413269,1762620631824,-254.64163945,0.00020871,2]
[393413270,1762620631835,-344.48106665,0.00020871,2]
[393413272,1762620631849,-177.0,0.00021043,2]
[393413273,1762620631858,-435.37796709,0.000221,2]
[393413274,1762620631868,-257.77739613,0.00022574,2]
[393413275,1762620631877,-282.0,0.00022587,2]
[393413276,1762620631887,-300.0,0.00022587,2]
[393413277,1762620631896,-1200.0,0.00022587,2]
[393413279,1762620631907,-3944.27268687,0.00022588,2]
[393413280,1762620631917,-500.0,0.00022588,2]
[393413282,1762620631926,-500.0,0.00022588,2]
[393413283,1762620631935,-500.0,0.00022588,2]
[393413285,1762620631945,-500.0,0.00022589,2]
[393413286,1762620631955,-500.0,0.00022589,2]
[393413287,1762620631964,-500.0,0.00022589,2]
[393413288,1762620631973,-508.00205783,0.00022589,2]
[393413289,1762620631982,-160.0,0.00022615,2]
[393413290,1762620632115,-399.81834234,0.00022615,2]
[393413291,1762620632127,-599.1227061,0.00022686,2]
[393413292,1762620632136,-420.0,0.00022695,2]
[393413293,1762620632146,-1695.19,0.000228,7]
[393413294,1762620632156,-203.35309801,0.00022872,2]
[393413307,1762620639855,-216.64690199,0.00022872,2]
[393413308,1762620639865,-420.0,0.00022883,2]
[393413309,1762620639874,-420.0,0.00022943,2]
[393413310,1762620639884,-204.0,0.00023043,2]
[393413311,1762620639894,-420.0,0.00023306,2]
[393413312,1762620639903,-420.0,0.00023512,2]
[393413313,1762620639913,-420.0,0.00023542,2]
[393413314,1762620639922,-66.89309801,0.00023641,2]
[393413315,1762620639935,-353.10690199,0.00023641,2]
[393413316,1762620639944,-515.33867484,0.00023642,2]
[393413317,1762620639954,-500.0,0.00023858,2]
[393413318,1762620639964,-420.0,0.00023859,2]
[393413319,1762620639975,-448.87437376,0.000239,2]
[393413345,1762621034468,244.896267,0.00013699,2]
[393413348,1762621279476,500.0,0.00036801,60]
[393413349,1762621279713,500.0,0.00036801,60]
[393413350,1762621280021,500.0,0.00036801,60]
[393413351,1762621280268,529.46815493,0.00036801,60]
[393413371,1762621739867,2449144.18107317,0.00036801,30]
[393413372,1762621768153,-501.59436442,0.000185,2]
[393413373,1762621768175,-150.0,0.00018644,2]
[393413374,1762621768195,-199.7789564,0.00019055,2]
[393413375,1762621768216,-244.896267,0.00020187,2]
[393413376,1762621768237,-177.0,0.00020644,2]
[393413377,1762621768256,-199.7789564,0.00021335,2]
[393413378,1762621768276,-6910.65465136,0.0002187,2]
[393413379,1762621768296,-123.57653704,0.00021872,2]
[393413398,1762621832076,-414.41783866,0.00019055,2]
[393413400,1762621832085,-414.41783866,0.00020896,2]
[393413401,1762621832095,-42.37512272,0.0002187,2]
[393413404,1762621832108,-526.9393523,0.0002187,2]
[393413406,1762621832117,-268.41,0.00021963,10]
[393413408,1762621832126,-223.67,0.00021963,10]
[393413409,1762621832135,-300.0,0.00021968,2]
[393413410,1762621832144,-216.83811945,0.00021968,2]
[393413411,1762621832155,-83.16188055,0.00021968,2]
[393413412,1762621832164,-300.0,0.00021968,2]
[393413413,1762621832175,-300.0,0.00021968,2]
[393413414,1762621832185,-1200.0,0.00021968,2]
[393413415,1762621832194,-39089.48517299,0.0002197,2]
[393413416,1762621832213,-362.37188495,0.0002197,2]
[393413417,1762621832224,-314.11079535,0.0002197,2]
[393413489,1762621840122,-500.0,0.00021969,2]
[393413490,1762621840132,-500.0,0.00021969,2]
[393413491,1762621840142,-500.0,0.00021969,2]
[393413492,1762621840151,-500.0,0.00021969,2]
[393413493,1762621840161,-500.0,0.00021969,2]
[393413494,1762621840170,-500.0,0.00021969,2]
[393413495,1762621840180,-500.0,0.00021969,2]
[393413496,1762621840190,-500.0,0.00021969,2]
[393413497,1762621840200,-500.0,0.00021969,2]
[393413498,1762621840209,-500.0,0.00021969,2]
[393413499,1762621840220,-500.0,0.00021969,2]
[393413500,1762621840229,-500.0,0.00021969,2]
[393413501,1762621840239,-502.2960885,0.00021969,2]
[393413502,1762621840249,-500.0,0.00021969,2]
[393413503,1762621840258,-500.0,0.00021969,2]
[393413504,1762621840269,-500.0,0.00021969,2]
[393413505,1762621840278,-500.0,0.00021969,2]
[393413506,1762621840290,-500.0,0.00021969,2]
[393413507,1762621840299,-500.0,0.00021969,2]
[393413508,1762621840309,-500.0,0.00021969,2]
[393413509,1762621840320,-469.59973597,0.00021969,2]
[393413597,1762622649798,583.66,0.00019616,4]
[393413599,1762622776459,-253.48994132,0.00019227,2]
[393413600,1762622776481,-244.37,0.00019421,2]
[393413601,1762622776504,-150.0,0.00019716,2]
[393413602,1762622776526,-436.74001477,0.00019793,2]
[393413603,1762622776548,-1458.48433073,0.00019793,2]
[393413604,1762622776571,-227.79055537,0.000199,2]
[393413605,1762622786444,-177.0,0.00021716,2]
[393413606,1762622786467,-1200.0,0.00021888,2]
[393413607,1762622786490,-300.0,0.00021888,2]
[393413608,1762622786512,-6046.82281994,0.00021889,2]
[393413609,1762622792092,-219.25615836,0.000219,2]
[393413610,1762622799429,-10596.40403166,0.000219,2]
[393413611,1762622799451,-3196.6701623,0.00021941,2]
[393413612,1762622799478,-4065.5233288,0.00021941,2]
[393413613,1762622799500,-500.0,0.00021972,2]
[393413614,1762622799523,-500.0,0.00021973,2]
[393413615,1762622799545,-500.0,0.00021973,2]
[393413616,1762622799568,-637.08960961,0.00021973,2]
[393413617,1762622799592,-500.0,0.00021973,2]
[393413618,1762622799615,-500.0,0.00021973,2]
[393413619,1762622799641,-500.0,0.00021973,2]
[393413620,1762622799663,-184.1651728,0.00021973,2]
[393413621,1762622799683,-465.39798466,0.00021973,2]
[393413622,1762622799706,-500.0,0.00021973,2]
[393413623,1762622799726,-500.0,0.00021973,2]
[393413624,1762622799747,-500.0,0.00021973,2]
[393413625,1762622799768,-500.0,0.00021973,2]
[393413626,1762622799790,-500.0,0.00021973,2]
[393413627,1762622799813,-500.0,0.00021973,2]
[393413628,1762622799835,-426.05216027,0.00021973,2]
[393413629,1762622799861,-500.0,0.00021973,2]
[393413630,1762622799886,-500.0,0.00021973,2]
[393413631,1762622799908,-209.20844078,0.00021973,2]
[393413632,1762622799934,-500.0,0.00021973,2]
[393413633,1762622799956,-500.0,0.00021973,2]
[393413634,1762622799978,-164.55,0.00021973,2]
[393413635,1762622800003,-186.39,0.0002198,10]
[393413636,1762622800026,-155.33,0.0002198,10]
[393413637,1762622800048,-776.66,0.0002198,10]
[393413638,1762622800071,-500.0,0.00021986,2]
[393413639,1762622800092,-500.0,0.00021986,2]
[393413640,1762622800114,-500.0,0.00021986,2]
[393413641,1762622800136,-500.0,0.00021986,2]
[393413642,1762622800157,-500.0,0.00021986,2]
[393413643,1762622800179,-500.0,0.00021986,2]
[393413644,1762622800202,-500.0,0.00021986,2]
[393413645,1762622800228,-500.0,0.00021986,2]
[393413646,1762622800252,-500.0,0.00021986,2]
[393413647,1762622800275,-500.0,0.00021986,2]
[393413648,1762622800300,-500.0,0.00021986,2]
[393413649,1762622800325,-500.0,0.00021986,2]
[393413650,1762622800347,-500.0,0.00021986,2]
[393413651,1762622800370,-500.0,0.00021986,2]
[393413652,1762622800394,-500.0,0.00021986,2]
[393413653,1762622800417,-500.0,0.00021986,2]
[393413654,1762622800439,-500.0,0.00021986,2]
[393413655,1762622800463,-500.0,0.00021986,2]
[393413656,1762622800488,-500.0,0.00021986,2]
[393413657,1762622800512,-500.0,0.00021986,2]
[393413658,1762622800537,-500.0,0.00021986,2]
[393413659,1762622800559,-500.0,0.00021986,2]
[393413660,1762622800583,-520.82533641,0.00021986,2]
[393413661,1762622800719,-500.0,0.00021986,2]
[393413662,1762622800742,-500.0,0.00021986,2]
[393413663,1762622800765,-478.97924205,0.00021986,2]
[393413664,1762622800789,-500.0,0.00021986,2]
[393413665,1762622800811,-500.0,0.00021986,2]
[393413666,1762622800836,-500.0,0.00021986,2]
[393413667,1762622800858,-500.0,0.00021986,2]
[393413668,1762622800881,-500.0,0.00021986,2]
[393413669,1762622800904,-500.0,0.00021986,2]
[393413670,1762622800927,-500.0,0.00021986,2]
[393413671,1762622800950,-500.0,0.00021986,2]
[393413672,1762622800975,-500.0,0.00021986,2]
[393413673,1762622801002,-500.0,0.00021986,2]
[393413674,1762622801028,-147.10702653,0.00021986,2]
[393413734,1762623032170,-248.84958398,0.00019058,2]
[393413736,1762623032179,-204.93041602,0.00020303,4]
[393413757,1762623032892,-29.61821987,0.00020303,4]
[393413847,1762623043508,-15.45136411,0.00020303,4]
[393413848,1762623043518,-8.91043126,0.00020681,2]
[393413861,1762623199846,639.0,0.0001765,2]
[393413862,1762623483377,200.49,0.00015984,2]
[393413863,1762623626903,300.0,0.0003287,120]
[393413891,1762624232358,-328.88854191,0.00019058,2]
[393413892,1762624232368,-150.0,0.00019478,2]
[393413893,1762624232377,-179.081418,0.00019899,2]
[393413894,1762624232391,-267.1415597,0.00020386,2]
[393413895,1762624232401,-291.12587555,0.00020386,2]
[393413896,1762624232410,-332.38257106,0.00020386,2]
[393413897,1762624232419,-489.18003378,0.000207,2]
[393413898,1762624232432,-93.33086644,0.000207,2]
[393413899,1762624232441,-208.0,0.00020888,2]
[393413900,1762624232450,-457.23302966,0.00020888,2]
[393413934,1762624240476,-500.0,0.00020888,2]